bitfinex/quotes_ETHUSD_20241129
["timestamp","ask_amount","ask_price","bid_price","bid_amount"]
[1732891079426,0.8279,3618.6,3618.2,2.76379]
[1732891079766,0.08641402,3618.5,3618.4,5.26708541]
[1732891079948,0.1543464,3618.8,3618.7,2.76342]
[1732891080515,0.8279,3620.3,3618.9,2.76319]
[1732891080716,0.8279,3620.3,3618.8,3.7865]
[1732891080717,0.06194452,3620.6,3620.1,2.50343541]
[1732891081027,0.8279,3620.9,3620.1,0.54749675]
[1732891081177,0.08637736,3620.5,3620.1,2.50343541]
[1732891081351,0.08637736,3620.5,3619.8,5.76257]
[1732891081551,2.76182,3620.8,3619.8,5.76257]
[1732891081756,2.76188,3620.8,3619.6,0.8101]
[1732891081951,0.8197,3620.6,3619.3,5.26634541]
[1732891082278,0.0863676,3620.5,3619.4,0.60764454]
[1732891082465,0.8197,3620.6,3619.4,3.37046454]
[1732891082667,0.08638328,3620.5,3619.4,0.60764454]
[1732891082836,0.8056,3620.2,3619.2,2.76302]
[1732891083043,2.76244,3620.0,3619.0,5.76319]
[1732891083269,0.55,3619.9,3618.8,6.54427]
[1732891083474,0.63639094,3619.9,3619.0,2.76317]
[1732891083773,3.56789,3620.2,3619.1,3.66781054]
[1732891083774,0.63638812,3620.1,3619.1,3.66781054]
[1732891083983,0.08638938,3620.0,3619.2,2.76302]
[1732891084287,0.55,3619.9,3619.3,2.76296]
[1732891084446,0.55,3620.1,3619.1,0.90476054]
[1732891084635,0.55,3620.1,3619.2,2.76297]
[1732891084636,0.6363883,3620.1,3619.2,2.76297]
[1732891084874,0.6363883,3620.1,3619.5,2.76279]
[1732891085076,0.0863883,3620.1,3619.5,2.76281]
[1732891085304,0.0863883,3620.1,3619.4,0.7519]
[1732891085305,0.08638063,3620.4,3620.1,2.76234]
[1732891085508,0.08638063,3620.4,3620.2,2.76226]
[1732891085777,2.84813063,3620.9,3620.0,2.7624]
[1732891085998,5.60994063,3620.9,3620.0,3.11383]
[1732891086192,0.08636849,3620.8,3620.0,3.11383]
[1732891086510,2.76185,3620.8,3620.0,0.35143]
[1732891086725,0.55,3620.8,3620.0,2.76235]
[1732891086873,0.63636988,3620.9,3620.1,2.76235]
[1732891087069,0.55,3620.9,3620.3,2.76219]
[1732891087318,0.55,3620.9,3620.1,2.76235]
[1732891087471,0.55,3620.9,3620.2,0.552485]
[1732891087672,0.55,3620.9,3620.2,3.314715]
[1732891088298,0.55,3620.9,3620.3,2.76219]
[1732891088705,0.55,3620.9,3620.2,0.552485]
[1732891088887,0.55,3620.9,3620.2,3.314725]
[1732891089086,0.55,3620.9,3620.3,0.6077135]
[1732891089496,0.55,3620.9,3620.4,2.76212]
[1732891089699,0.55,3620.9,3620.2,2.76227]
[1732891089912,0.55,3620.9,3619.9,2.7625]
[1732891089913,3.31181,3620.9,3620.0,2.76242]
[1732891090110,0.7633,3620.6,3619.8,2.76258]
[1732891090310,0.55,3620.5,3620.0,2.76238]
[1732891090511,0.55,3620.5,3619.9,0.276258]
[1732891090690,0.55,3620.5,3619.5,3.0]
[1732891090884,0.55,3620.1,3619.5,3.0]
[1732891091100,0.55,3620.1,3619.5,2.76281]
[1732891091101,0.7811,3620.0,3619.5,2.76281]
[1732891091672,0.7811,3620.0,3619.3,3.36677305]
[1732891091878,0.55,3619.9,3619.3,0.36677305]
[1732891092113,0.55,3619.6,3618.8,2.76333]
[1732891092511,0.55,3619.9,3618.8,2.76327]
[1732891092680,0.55,3619.9,3619.0,2.76319]
[1732891092681,3.31251,3619.9,3619.0,2.76319]
[1732891093076,2.76258,3619.8,3619.0,2.76319]
[1732891093308,0.55,3619.7,3619.0,2.76319]
[1732891093481,3.31267,3619.7,3619.0,0.852655]
[1732891093986,2.76289,3619.4,3618.6,2.76348]
[1732891094378,2.76289,3619.4,3618.4,3.57989]
[1732891094379,0.55,3619.5,3618.4,3.57989]
[1732891094575,0.55,3619.5,3618.7,2.76334]
[1732891094813,0.55,3619.5,3618.7,2.76335]
[1732891095022,0.55,3619.5,3618.8,2.76333]
[1732891095175,3.31283,3619.5,3618.8,2.76333]
[1732891095995,0.8172,3618.9,3618.0,3.56953]
[1732891096200,2.76344,3618.7,3618.0,2.76393]
[1732891096401,2.76358,3618.5,3617.8,2.76408]
[1732891096725,0.55,3618.4,3617.6,2.76424]
[1732891097022,0.55,3618.2,3617.4,3.52129]
[1732891097238,3.31401,3618.0,3617.3,2.76445]
[1732891097526,0.55,3618.0,3617.2,0.4]
[1732891097694,0.55,3618.1,3617.7,2.76416]
[1732891097895,0.55,3618.1,3617.2,0.4]
[1732891098100,0.55,3618.1,3617.4,2.76436]
[1732891098297,0.55,3618.1,3617.6,2.76425]
[1732891098626,0.8328,3618.2,3617.4,0.592885]
[1732891098840,0.8328,3618.2,3617.6,2.76425]
[1732891098995,0.55,3618.1,3617.2,0.4]
[1732891099332,0.8328,3618.2,3617.3,0.7514]
[1732891099928,0.8328,3618.2,3617.8,2.76409]
[1732891100383,0.8077,3618.6,3618.0,2.76389]
[1732891100585,0.55,3618.5,3618.0,0.552791]
[1732891101226,0.55,3618.3,3616.9,3.58835]
[1732891101388,0.55,3618.3,3617.8,2.76406]
[1732891101588,2.76396,3618.0,3617.3,2.76441]
[1732891101789,2.7638,3618.2,3617.3,2.76449]
[1732891102208,0.55,3618.3,3617.9,2.76398]
[1732891102393,0.55,3618.3,3617.7,2.76417]
[1732891102609,0.8077,3618.4,3618.1,2.76388]
[1732891102989,0.7799,3619.1,3617.8,0.276417]
[1732891103184,0.7799,3619.1,3618.3,3.16567271]
[1732891103413,0.7799,3619.1,3618.9,2.76321]
[1732891103689,0.7799,3619.1,3618.9,2.76326]
[1732891104135,0.8121,3619.5,3619.0,2.76319]
[1732891104432,0.8121,3619.5,3618.9,2.76321]
[1732891104590,3.57492,3619.5,3618.9,2.76326]
[1732891104786,0.8121,3619.5,3618.9,2.76326]
[1732891105325,0.8121,3619.5,3619.1,2.76305]
[1732891105485,0.8121,3619.5,3619.3,2.76294]
[1732891105693,0.7805,3619.8,3619.3,0.276294]
[1732891105893,0.7805,3619.8,3619.3,2.7629]
[1732891106087,0.7805,3619.8,3619.3,2.76291]
[1732891106308,0.7805,3619.8,3619.1,2.7631]
[1732891106493,0.7805,3619.8,3619.3,2.76295]
[1732891106902,0.7805,3619.8,3619.2,2.76301]
[1732891107121,0.7805,3619.8,3619.3,2.76295]
[1732891107662,0.7805,3619.8,3619.5,2.76275]
[1732891107805,0.7805,3619.8,3618.4,3.594]
[1732891107806,0.55,3619.7,3619.0,2.76315]
[1732891108011,0.55,3619.7,3619.3,2.76291]
[1732891108646,0.55,3619.7,3619.1,2.76311]
[1732891109007,0.55,3619.7,3619.0,0.276315]
[1732891109008,3.31266,3619.7,3619.0,0.276315]
[1732891109209,1.346,3619.2,3618.6,2.76345]
[1732891109458,1.346,3619.2,3617.8,0.276417]
[1732891109459,0.55,3618.9,3618.3,2.76371]
[1732891110053,0.55,3618.9,3617.8,0.276417]
[1732891110054,0.55,3618.8,3618.1,2.76388]
[1732891110222,0.55,3618.8,3618.2,2.76378]
[1732891110854,0.55,3618.8,3618.3,2.7637]
[1732891111108,0.55,3618.8,3618.2,3.0]
[1732891111109,3.31335,3618.8,3618.2,3.0]
[1732891111257,0.8154,3618.5,3617.7,3.55866]
[1732891111463,3.57897,3618.5,3617.9,2.76402]
[1732891111614,2.76373,3618.3,3617.7,2.76416]
[1732891111819,0.55,3618.4,3617.7,2.76418]
[1732891112055,0.55,3618.4,3617.8,2.76406]
[1732891112426,0.55,3618.4,3617.3,0.7785]
[1732891112627,0.8154,3618.5,3618.1,2.76386]
[1732891113159,0.55,3618.4,3617.9,2.76401]
[1732891113361,0.55,3618.4,3618.3,2.76372]
[1732891113565,2.763,3619.3,3618.3,2.76372]
[1732891113566,0.55,3618.8,3618.3,2.76372]
[1732891113720,0.8307,3618.9,3618.4,2.76363]
[1732891114263,0.8307,3618.9,3618.2,2.76379]
[1732891114416,0.55,3618.8,3618.2,2.76379]
[1732891114770,2.7635,3618.6,3618.0,2.76395]
[1732891114919,2.7635,3618.6,3617.8,2.76409]
[1732891114920,2.76343,3618.7,3618.1,2.76387]
[1732891115120,0.55,3618.8,3618.3,2.76372]
[1732891115724,0.55,3618.8,3618.1,2.76387]
[1732891116030,0.55,3618.8,3618.2,2.7638]
[1732891116031,3.31334,3618.8,3618.2,2.7638]
[1732891116250,0.8307,3618.9,3618.2,0.55278]
[1732891116570,0.8307,3618.9,3618.6,2.76347]
[1732891116866,0.8307,3618.9,3618.4,2.76362]
[1732891117033,0.8307,3618.9,3618.2,0.55278]
[1732891117034,2.76335,3618.8,3618.2,0.55278]
[1732891117236,0.8307,3618.9,3617.5,3.97287271]
[1732891117562,0.7541,3618.7,3617.6,3.16567271]
[1732891117767,0.7541,3618.7,3618.2,2.76373]
[1732891117925,0.7541,3618.7,3618.3,2.76372]
[1732891118433,0.7541,3618.7,3617.6,3.16567271]
[1732891118434,0.7541,3618.7,3618.0,2.76394]
[1732891118649,0.7541,3618.7,3618.5,2.76357]
[1732891118861,0.7541,3618.7,3617.3,2.76442]
[1732891118862,0.7541,3618.7,3617.9,2.764]
[1732891119180,2.7635,3618.6,3617.9,2.764]
[1732891119379,0.7541,3618.7,3617.8,2.76409]
[1732891119534,2.76379,3618.3,3617.4,0.43441727]
[1732891119734,0.7932,3618.4,3617.7,2.76418]
[1732891120093,0.7932,3618.4,3617.9,2.76395]
[1732891120438,0.7932,3618.4,3617.9,2.76398]
[1732891121202,0.7777,3618.1,3617.4,2.76438]
[1732891121416,3.54164,3618.1,3617.4,2.76435]
[1732891121550,0.7777,3618.1,3617.6,2.76425]
[1732891122450,0.7777,3618.1,3617.8,2.76408]
[1732891122849,0.7777,3618.1,3617.7,2.76417]
[1732891123293,2.76396,3618.0,3617.3,2.76447]
[1732891123497,2.76396,3618.0,3617.4,2.76436]
[1732891124356,6.30553,3618.1,3617.4,2.76441]
[1732891124679,2.76402,3618.0,3617.4,2.76441]
[1732891125907,0.7777,3618.1,3617.2,0.4]
[1732891126068,0.7777,3618.1,3617.6,2.7642]
[1732891126325,2.76398,3618.0,3617.4,2.76441]
[1732891126627,0.7805,3617.7,3617.2,0.4]
[1732891126830,2.76427,3617.6,3617.2,0.4]
[1732891128355,0.7633,3618.2,3617.6,2.76426]
[1732891128547,0.7633,3618.2,3617.8,2.76409]
[1732891128749,2.76388,3618.1,3617.4,2.76436]
[1732891128910,2.764,3618.0,3617.4,3.35725]
[1732891129307,3.52715,3618.2,3617.6,2.76421]
[1732891129547,2.76389,3618.1,3617.4,3.35726]
[1732891129707,2.76407,3617.9,3617.2,0.4]
[1732891129922,0.55,3617.9,3617.2,0.4]
[1732891130126,2.76424,3617.7,3617.2,0.4]
[1732891130323,3.31431,3617.6,3617.2,0.4]
[1732891130670,0.7839,3617.5,3617.2,0.4]
[1732891130866,2.76388,3618.1,3617.2,0.4]
[1732891130867,0.7839,3617.8,3617.6,2.76426]
[1732891131079,0.7839,3617.8,3617.2,0.4]
[1732891131238,2.76365,3618.4,3617.2,0.4]
[1732891131441,3.0,3618.7,3617.4,2.76435]
[1732891131442,2.76393,3618.1,3617.4,2.76435]
[1732891131639,0.54418569,3618.9,3617.2,3.16455]
[1732891131640,2.7641,3617.9,3617.2,3.16455]
[1732891131936,2.76431,3617.6,3617.2,0.4]
[1732891132137,0.7958,3617.7,3617.2,0.4]
[1732891132352,2.76426,3617.6,3617.2,0.4]
[1732891132668,2.76435,3617.5,3617.2,0.4]
[1732891132840,2.76446,3617.4,3617.2,0.4]
[1732891133177,4.08349,3617.3,3617.2,0.4]
[1732891134532,4.16995632,3617.3,3617.2,0.4]
[1732891134870,7.16995632,3617.3,3617.2,0.4]
[1732891136845,7.16995632,3617.3,3617.2,0.30780967]
[1732891137489,7.4083263,3617.3,3617.2,0.30780967]
[1732891137788,7.3083263,3617.3,3617.2,0.30780967]
[1732891138777,4.16995632,3617.3,3617.2,0.30780967]
[1732891139085,0.85546632,3617.3,3617.2,0.30780967]
[1732891139295,0.769,3617.3,3617.2,0.30780967]
[1732891139576,0.7843,3617.7,3617.3,2.76448]
[1732891139747,0.7843,3617.7,3617.2,3.07236967]
[1732891140149,0.7843,3617.7,3617.2,0.30780967]
[1732891140338,3.54849,3617.7,3617.2,0.30780967]
[1732891140540,0.7843,3617.7,3617.2,0.30780967]
[1732891140981,3.54849,3617.7,3617.2,0.30780967]
[1732891141393,0.7843,3617.7,3617.2,0.30780967]
[1732891141637,0.55,3617.4,3617.2,0.30780967]
[1732891141934,0.55,3617.6,3617.2,0.30780967]
[1732891142640,2.76442,3617.4,3617.2,0.30780967]
[1732891143014,3.31433,3617.6,3617.2,0.30780967]
[1732891143419,0.55,3617.6,3617.2,0.30780967]
[1732891143824,0.55,3617.6,3617.3,2.76448]
[1732891144094,0.55,3617.6,3617.2,0.30780967]
[1732891145941,3.31449,3617.3,3617.2,0.30780967]
[1732891146098,0.55,3617.4,3617.2,0.30780967]
[1732891146294,0.55,3617.6,3617.2,0.30780967]
[1732891146893,0.55,3617.6,3617.2,3.07231967]
[1732891147098,0.7843,3617.7,3617.5,2.76429]
[1732891147313,0.55,3618.3,3617.3,2.76449]
[1732891147524,0.63643042,3618.3,3617.3,2.76449]
[1732891147730,0.55,3618.1,3617.3,2.76449]
[1732891148239,0.08643042,3618.0,3617.3,2.76449]
[1732891148415,0.55,3617.9,3617.2,0.30780967]
[1732891148817,0.7692,3617.8,3617.2,0.30780967]
[1732891149021,0.55,3617.7,3617.2,0.30780967]
[1732891149232,0.7692,3617.8,3617.3,2.76443]
[1732891149439,0.7692,3617.8,3617.2,0.30780967]
[1732891149620,0.7692,3617.8,3617.2,3.07236967]
[1732891149831,0.7692,3617.8,3617.4,2.76436]
[1732891150148,0.7692,3617.8,3617.4,2.76435]
[1732891150862,0.7692,3617.8,3617.2,3.07232967]
[1732891151010,0.7692,3617.8,3617.3,2.76448]
[1732891151206,0.7692,3617.8,3617.4,2.76441]
[1732891152949,0.7692,3617.8,3617.2,3.07233967]
[1732891153111,0.7692,3617.8,3617.3,2.76448]
[1732891153844,0.7692,3617.8,3617.4,2.76434]
[1732891154045,0.7692,3617.8,3617.3,2.76448]
[1732891154248,0.7692,3617.8,3617.4,2.76441]
[1732891154553,0.7692,3617.8,3617.2,3.07235967]
[1732891154752,0.7692,3617.8,3617.3,2.76447]
[1732891155248,0.7692,3617.8,3617.6,2.76424]
[1732891155432,0.55,3618.1,3617.3,1.37678297]
[1732891155609,0.63643199,3618.1,3617.5,2.76434]
[1732891155806,0.63643219,3618.1,3617.2,0.30780967]
[1732891156052,0.7724,3618.2,3617.2,0.30780967]
[1732891156053,0.55,3617.9,3617.2,0.30780967]
[1732891156307,0.55,3617.7,3617.2,3.07234967]
[1732891156460,0.89053219,3617.8,3617.4,2.76434]
[1732891156762,0.89053219,3617.8,3617.3,2.76444]
[1732891156763,0.08643219,3617.7,3617.3,2.76444]
[1732891157113,0.8041,3617.8,3617.3,2.76443]
[1732891157315,0.8041,3617.8,3617.4,2.76441]
[1732891157782,0.0864362,3617.7,3617.4,2.76441]
[1732891158061,2.76381,3618.2,3617.4,2.76441]
[1732891158062,0.13830274,3618.1,3617.9,2.76402]
[1732891158354,0.92377923,3618.5,3618.0,2.76395]
[1732891158661,0.92377923,3618.5,3617.7,2.76418]
[1732891158662,0.7855,3618.5,3617.5,0.30722197]
[1732891158970,0.7855,3618.5,3617.7,2.76413]
[1732891159118,3.54907,3618.5,3617.7,2.76413]
[1732891159317,0.55,3618.4,3617.8,2.7641]
[1732891159517,0.55,3618.4,3617.4,0.7591]
[1732891159518,0.55,3618.4,3617.5,2.76431]
[1732891159758,3.3137,3618.4,3617.4,3.52346]
[1732891159929,0.55,3617.9,3617.2,0.30780967]
[1732891160393,0.04488424,3618.6,3618.1,2.76385]
[1732891160696,0.87438424,3618.9,3617.8,0.7712]
[1732891160850,0.8295,3618.9,3618.2,2.76374]
[1732891161188,0.8295,3618.9,3618.0,2.76389]
[1732891161488,0.8295,3618.9,3618.0,3.16567271]
[1732891161684,0.8295,3618.9,3618.1,0.39645103]
[1732891161991,0.8295,3619.7,3619.3,2.76289]
[1732891162175,0.04488424,3620.0,3618.8,6.70017271]
[1732891162176,0.8128,3620.0,3619.7,2.7626]
[1732891162344,2.76218,3620.4,3619.0,2.76319]
[1732891162545,2.76218,3620.4,3619.7,2.76264]
[1732891162763,0.8128,3620.5,3619.2,5.92870271]
[1732891163000,0.8128,3620.5,3619.6,2.76271]
[1732891163155,0.8128,3620.5,3619.8,2.76251]
[1732891163546,0.8128,3620.5,3619.9,2.76248]
[1732891163826,0.8128,3620.5,3620.0,2.76242]
[1732891164178,0.8128,3620.5,3619.5,0.7716]
[1732891164179,0.8128,3620.5,3620.1,2.76234]
[1732891164348,0.7635,3620.9,3619.6,3.16567271]
[1732891164548,2.80625424,3621.4,3620.7,2.76183]
[1732891164549,0.7635,3621.3,3620.7,2.76183]
[1732891164870,0.7635,3621.3,3620.6,2.76197]
[1732891165195,0.7635,3621.3,3620.8,2.76181]
[1732891166785,0.54949916,3622.0,3620.9,0.8278]
[1732891166958,0.7769,3622.1,3621.4,2.76131]
[1732891167148,0.1543464,3622.3,3620.9,3.0]
[1732891167353,0.1543464,3622.3,3621.6,2.76121]
[1732891167597,2.9150764,3622.3,3621.6,2.76121]
[1732891167778,0.1543464,3622.3,3621.4,2.76135]
[1732891168050,2.76082,3622.2,3621.4,2.76135]
[1732891168252,2.76082,3622.2,3621.2,2.76151]
[1732891168468,0.55,3622.2,3621.4,2.7613]
[1732891168673,0.55,3622.0,3621.4,2.7613]
[1732891169187,0.55,3622.0,3621.2,2.76151]
[1732891169351,3.3109,3622.0,3621.3,2.76141]
[1732891169688,3.3109,3622.0,3621.3,5.52282]
[1732891169989,3.31076,3622.2,3621.5,2.76127]
[1732891170198,0.55,3622.2,3621.7,2.76109]
[1732891170360,3.3108,3622.2,3621.5,2.76127]
[1732891170685,0.55,3622.0,3621.5,2.76127]
[1732891170990,0.55,3622.0,3621.3,2.76137]
[1732891170991,2.7609,3622.0,3621.3,2.76137]
[1732891171831,1.336,3622.2,3621.6,2.76114]
[1732891171975,2.9150464,3622.3,3621.6,3.16567271]
[1732891171976,0.1543464,3622.3,3621.6,3.16567271]
[1732891172171,0.1543464,3622.3,3621.5,3.7664]
[1732891172172,0.1543464,3622.3,3621.7,2.76113]
[1732891172423,0.1543464,3622.3,3621.9,2.7609]
[1732891172915,0.1543464,3622.3,3621.9,2.76092]
[1732891173527,0.1543464,3622.3,3621.7,2.76113]
[1732891173674,0.1543464,3622.3,3621.5,3.52767]
[1732891173918,0.1543464,3622.3,3621.5,0.7664]
[1732891174102,0.1543464,3622.3,3621.9,2.76092]
[1732891174274,0.1543464,3622.3,3621.8,2.761]
[1732891174477,0.1543464,3622.3,3622.1,2.76082]
[1732891176307,0.1543464,3622.3,3622.0,2.76087]
[1732891176514,0.1543464,3622.3,3622.1,2.7608]
[1732891176886,0.1543464,3622.3,3621.8,2.761]
[1732891177089,0.1543464,3622.3,3622.1,2.76079]
[1732891177718,0.1543464,3622.3,3621.9,2.76097]
[1732891177950,0.1543464,3622.3,3621.7,2.76111]
[1732891178418,0.1543464,3622.3,3621.5,3.52767]
[1732891178419,0.1543464,3622.3,3621.5,0.7664]
[1732891178594,0.1543464,3622.3,3621.5,1.45960727]
[1732891178784,0.1543464,3622.3,3621.9,2.76097]
[1732891179645,0.1543464,3622.3,3622.0,2.7609]
[1732891179845,0.1543464,3622.3,3621.8,2.76104]
[1732891180359,0.1543464,3622.3,3621.9,2.76095]
[1732891180854,0.1543464,3622.3,3622.0,2.76089]
[1732891181235,0.1543464,3622.3,3622.1,2.7608]
[1732891181545,0.1543464,3622.3,3621.8,2.76104]
[1732891181963,0.1543464,3622.3,3621.5,0.7664]
[1732891182165,0.7992,3621.7,3621.0,0.56392025]
[1732891182368,0.7992,3621.7,3620.9,2.76173]
[1732891182531,3.56033,3621.7,3620.9,2.76173]
[1732891182754,3.56033,3621.7,3621.0,2.76166]
[1732891183044,3.56033,3621.7,3621.2,2.76147]
[1732891183045,0.7992,3621.7,3621.2,2.76147]
[1732891183261,0.7992,3621.7,3620.7,0.7959]
[1732891183467,0.7992,3621.7,3620.7,1.76825627]
[1732891183635,3.56037,3621.7,3620.9,2.76173]
[1732891183960,3.56037,3621.7,3620.7,4.53012627]
[1732891183961,0.7992,3621.7,3620.8,2.76182]
[1732891184156,0.7992,3621.7,3621.2,2.7615]
[1732891184569,0.7992,3621.7,3621.3,2.76136]
[1732891184869,0.55,3622.0,3621.5,2.76124]
[1732891185557,2.76114,3621.7,3621.0,2.76161]
[1732891185758,0.8096,3621.7,3620.9,2.76173]
[1732891185935,0.55,3621.6,3620.7,2.76189]
[1732891186136,2.76128,3621.5,3620.7,2.76182]
[1732891186336,0.55,3621.6,3621.2,2.76148]
[1732891186536,0.55,3621.6,3620.9,2.7617]
[1732891186736,2.76129,3621.5,3620.9,2.7617]
[1732891186973,2.76138,3621.4,3620.7,2.76184]
[1732891187178,0.55,3621.3,3620.7,2.76184]
[1732891187333,0.55,3621.3,3620.5,2.76203]
[1732891187534,2.76173,3621.0,3620.3,2.76219]
[1732891187840,3.3118,3620.9,3620.1,3.52723]
[1732891188040,2.76183,3620.8,3620.1,3.52723]
[1732891188278,0.55,3621.1,3620.2,2.7622]
[1732891188572,0.55,3620.8,3620.2,2.7622]
[1732891189071,3.31163,3621.1,3620.4,2.76207]
[1732891189287,0.55,3621.1,3620.5,2.76198]
[1732891189967,0.55,3621.1,3620.4,2.76212]
[1732891190276,0.55,3621.1,3620.8,2.76179]
[1732891190643,0.8326,3621.2,3620.8,2.76179]
[1732891191039,0.8326,3621.2,3620.6,2.76195]
[1732891191235,0.8326,3621.2,3620.7,2.76186]
[1732891191961,0.8326,3621.2,3620.8,2.76181]
[1732891192138,1.3021,3621.6,3620.8,2.76181]
[1732891192343,1.3021,3621.6,3620.4,3.16567271]
[1732891192534,0.7521,3621.6,3621.2,2.76151]
[1732891193473,0.7521,3621.6,3620.8,2.7618]
[1732891193687,0.7521,3621.6,3620.8,3.16567271]
[1732891193983,0.7521,3621.6,3621.0,2.76159]
[1732891194333,0.7521,3621.6,3621.1,2.76157]
[1732891194762,0.7521,3621.6,3620.8,2.7618]
[1732891194977,0.7521,3621.6,3620.7,0.8163]
[1732891195134,0.7521,3621.6,3621.1,2.76153]
[1732891195772,0.7521,3621.6,3620.9,2.76174]
[1732891195974,0.7521,3621.6,3621.1,2.76154]
[1732891196183,0.7521,3621.6,3621.0,2.76166]
[1732891196345,0.7521,3621.6,3621.0,2.76164]
[1732891196540,0.7521,3621.6,3621.1,2.76158]
[1732891196863,0.7521,3621.6,3620.9,2.76173]
[1732891197063,0.7521,3621.6,3621.1,2.76158]
[1732891198505,0.7521,3621.6,3620.7,3.57817]
[1732891198679,0.7521,3621.6,3621.0,2.76166]
[1732891199105,0.7521,3621.6,3620.7,0.8163]
[1732891199408,0.783,3622.1,3621.5,2.76128]
[1732891199627,0.783,3622.1,3619.9,0.33546391]
[1732891199628,0.1,3620.3,3619.9,0.33546391]
[1732891199765,5.0,3621.5,3617.5,0.7917]
[1732891199766,0.2948,3619.7,3619.1,3.05175605]
[1732891200081,3.05747,3619.7,3619.1,0.28864605]
[1732891200265,2.76276,3619.6,3619.1,0.28864605]
[1732891200467,2.76273,3619.6,3619.1,0.28864605]
[1732891200666,2.76297,3619.3,3619.1,0.28864605]
[1732891200915,0.55,3619.3,3619.1,0.28864605]
[1732891201108,0.55,3619.3,3618.9,2.76321]
[1732891201270,0.2948,3619.7,3618.9,2.76321]
[1732891201966,3.51899674,3619.6,3618.7,2.76338]
[1732891202168,0.55,3619.4,3618.7,2.76338]
[1732891202362,0.20623674,3619.3,3618.7,2.76338]
[1732891202593,0.55,3619.6,3618.8,2.76327]
[1732891202777,0.20601812,3619.5,3618.4,0.7917]
[1732891202977,0.20601812,3619.4,3619.0,2.76318]
[1732891203213,2.7624,3620.1,3619.1,2.76306]
[1732891203423,0.75588978,3620.0,3619.2,2.76302]
[1732891203570,0.75588978,3620.0,3618.7,3.7994]
[1732891203571,0.20588978,3619.9,3618.7,3.7994]
[1732891203769,0.55,3620.1,3618.8,2.76334]
[1732891203965,0.20588978,3620.0,3619.4,2.76282]
[1732891204212,0.55,3620.1,3619.5,2.76275]
[1732891204505,0.20588978,3620.2,3619.5,2.76275]
[1732891204506,0.20588978,3620.2,3619.7,2.76258]
[1732891204709,0.2948,3620.3,3619.8,2.76253]
[1732891204909,0.20588978,3620.6,3619.8,2.76258]
[1732891205078,2.76223,3620.3,3619.0,0.7558]
[1732891205300,0.20588978,3620.2,3619.5,2.7628]
[1732891205507,0.20588978,3620.2,3619.4,2.76283]
[1732891205508,2.7623,3620.2,3619.4,2.76283]
[1732891205692,0.55,3620.0,3619.2,2.7906678]
[1732891205916,0.55,3620.0,3619.2,2.76304]
[1732891206085,0.55,3620.0,3619.4,2.76283]
[1732891206289,0.55,3620.2,3619.4,2.76283]
[1732891206623,2.76236,3620.1,3619.4,2.76283]
[1732891206809,2.76221,3620.3,3619.6,2.76271]
[1732891207122,0.55,3620.4,3619.6,2.76273]
[1732891207428,0.55,3620.3,3619.0,0.7558]
[1732891207631,2.76229,3620.2,3619.5,2.76276]
[1732891207789,2.76236,3620.1,3619.5,2.76276]
[1732891207988,0.55,3620.5,3619.0,0.7558]
[1732891208203,0.55,3620.1,3619.4,2.76283]
[1732891208486,3.51815653,3620.1,3619.5,2.7628]
[1732891208800,2.76252,3619.9,3619.2,2.76298]
[1732891209204,2.76266,3619.7,3619.0,2.76318]
[1732891209522,2.76266,3619.7,3619.1,2.76311]
[1732891209726,0.2948,3619.6,3619.0,2.76311]
[1732891210083,0.2948,3619.6,3618.7,0.7563]
[1732891210298,0.2948,3619.6,3619.3,2.76294]
[1732891210832,0.55,3619.9,3619.3,2.76294]
[1732891211196,3.31256,3619.9,3619.3,2.76294]
[1732891212037,0.55,3619.9,3619.5,2.76278]
[1732891212210,3.05679,3620.6,3619.4,0.8254]
[1732891212408,0.20586182,3620.5,3620.1,2.76235]
[1732891212735,0.2948,3620.6,3620.0,2.76238]
[1732891212937,3.05684,3620.6,3619.9,2.76244]
[1732891213099,0.2948,3620.6,3619.7,2.76265]
[1732891213297,0.2948,3620.6,3619.7,2.76261]
[1732891213547,3.05678,3620.6,3619.9,2.76249]
[1732891213714,0.2948,3620.6,3619.9,2.76249]
[1732891214039,2.76206,3620.5,3619.9,2.76249]
[1732891214348,0.55,3620.5,3620.0,2.76242]
[1732891214841,0.55,3620.5,3620.0,2.76238]
[1732891215138,0.55,3620.3,3619.6,2.76271]
[1732891215311,0.2948,3620.0,3618.8,3.0]
[1732891215513,0.55,3619.6,3618.8,2.76334]
[1732891215710,0.2948,3620.0,3618.3,0.7708]
[1732891215711,0.2948,3620.0,3618.3,3.93859485]
[1732891215939,0.55,3619.9,3619.5,2.76281]
[1732891216100,0.55,3619.9,3619.4,2.76281]
[1732891216301,3.0,3620.5,3619.4,2.76281]
[1732891216302,0.2948,3621.8,3621.5,2.76128]
[1732891216575,0.20598106,3621.7,3620.5,0.7708]
[1732891216705,0.2948,3621.8,3621.7,2.76113]
[1732891216905,0.50078106,3622.2,3621.7,2.76113]
[1732891217106,0.2948,3622.2,3621.7,2.76113]
[1732891217338,0.2948,3622.2,3621.6,2.7612]
[1732891217505,3.05556,3622.2,3621.4,2.7613]
[1732891217711,0.2948,3622.2,3621.2,2.7615]
[1732891217944,3.05558,3622.2,3621.4,2.76133]
[1732891218244,3.05558,3622.2,3621.5,2.76127]
[1732891218450,0.2948,3622.2,3621.5,2.76127]
[1732891218740,0.50058484,3622.2,3620.9,2.76174]
[1732891218948,3.05556,3622.2,3621.4,2.76131]